fUST/lending_fUST_20241106
["ID","MTS","AMOUNT","RATE_DAILY","PERIOD"]
[341375690,1730856642435,-1445.33,0.00038356,14]
[341375691,1730856642537,-504.85956342,0.00038356,14]
[341375692,1730856642547,-503.79365094,0.00038356,14]
[341375693,1730856642556,-505.70262019,0.00038356,14]
[341375694,1730856642565,-500.0,0.00038356,14]
[341375695,1730856642575,-2563.05,0.00038356,14]
[341375696,1730856642585,-500.0,0.00038356,14]
[341375697,1730856642594,-504.39967006,0.00038356,14]
[341375698,1730856642603,-500.0,0.00038356,2]
[341375699,1730856642613,-500.0,0.00038356,14]
[341375700,1730856642624,-719.67,0.00038356,14]
[341375701,1730856642634,-385.53121822,0.00038356,7]
[341375702,1730856642644,-500.0,0.00038356,14]
[341375703,1730856642655,-500.0,0.00038356,14]
[341375704,1730856642665,-500.0,0.00038356,14]
[341375705,1730856642676,-500.0,0.00038356,14]
[341375706,1730856642687,-500.0,0.00038356,14]
[341375707,1730856642697,-2804.27,0.00038356,14]
[341375708,1730856642708,-500.0,0.00038356,14]
[341375709,1730856642719,-500.0,0.00038356,10]
[341375710,1730856642729,-500.0,0.00038356,14]
[341375711,1730856642738,-500.0,0.00038356,14]
[341375712,1730856642748,-610.70831622,0.00038356,14]
[341375713,1730856642757,-500.0,0.00038356,14]
[341375714,1730856642766,-500.0,0.00038356,14]
[341375715,1730856642776,-500.0,0.00038356,14]
[341375716,1730856642790,-1393.6,0.00038356,14]
[341375717,1730856642799,-500.0,0.00038356,14]
[341375718,1730856642808,-505.41932999,0.00038356,14]
[341375719,1730856642817,-500.0,0.00038356,14]
[341375720,1730856642827,-504.5760185,0.00038356,14]
[341375721,1730856642836,-500.0,0.00038356,14]
[341375722,1730856642846,-500.0,0.00038356,14]
[341375723,1730856642855,-157.287643,0.00038356,14]
[341375724,1730856642865,-507.48779219,0.00038356,14]
[341375725,1730856642875,-500.0,0.00038356,14]
[341375726,1730856642884,-503.08744073,0.00038356,14]
[341375727,1730856642894,-523.98757528,0.00038356,14]
[341375728,1730856642907,-605.62,0.00038356,14]
[341375729,1730856642918,-724.23,0.00038356,14]
[341375730,1730856642927,-501.79320615,0.00038356,14]
[341375731,1730856642937,-507.91394664,0.00038356,14]
[341375732,1730856642946,-500.0,0.00038356,14]
[341375734,1730856642956,-524.2047128,0.00038356,14]
[341375736,1730856642965,-508.7949537,0.00038356,14]
[341375737,1730856642975,-500.0,0.00038356,14]
[341375738,1730856642984,-500.0,0.00038373,5]
[341375739,1730856642994,-595.08708656,0.00038373,5]
[341375740,1730856643003,-250.83311071,0.0003853,2]
[341375741,1730856643013,-496.17399034,0.00038579,2]
[341375742,1730856643023,-500.0,0.0003863,14]
[341375743,1730856643034,-500.0,0.0003863,14]
[341375744,1730856643045,-170.91,0.0003863,14]
[341375745,1730856643058,-500.0,0.0003863,14]
[341375746,1730856643067,-500.0,0.0003863,14]
[341375747,1730856643075,-500.0,0.0003863,14]
[341375748,1730856643085,-500.0,0.0003863,14]
[341375749,1730856643094,-500.0,0.0003863,14]
[341375750,1730856643103,-500.0,0.0003863,14]
[341375751,1730856643113,-500.0,0.0003863,14]
[341375752,1730856643122,-364.51622917,0.0003863,14]
[341375753,1730856643131,-500.0,0.0003863,14]
[341375754,1730856643142,-231.10092695,0.0003863,14]
[341375756,1730856643151,-500.0,0.0003863,14]
[341375758,1730856643160,-500.0,0.0003863,14]
[341375762,1730856643171,-500.0,0.0003863,120]
[341375764,1730856643181,-500.0,0.0003863,14]
[341375766,1730856643192,-500.0,0.0003863,14]
[341375768,1730856643201,-500.0,0.0003863,7]
[341375770,1730856643212,-500.0,0.0003863,14]
[341375771,1730856643223,-500.0,0.0003863,14]
[341375772,1730856643233,-647.39975741,0.0003863,14]
[341375773,1730856643242,-500.0,0.0003863,14]
[341375774,1730856643252,-158.610618,0.0003863,14]
[341375775,1730856643260,-877.17,0.0003863,14]
[341375776,1730856643271,-507.14589101,0.0003863,14]
[341375777,1730856643286,-500.0,0.0003863,14]
[341375778,1730856643296,-500.0,0.0003863,14]
[341375779,1730856643307,-500.0,0.0003863,14]
[341375780,1730856643316,-500.0,0.0003863,14]
[341375781,1730856643326,-500.0,0.0003863,14]
[341375782,1730856643335,-500.0,0.0003863,14]
[341375783,1730856643344,-500.0,0.0003863,14]
[341375784,1730856643354,-500.0,0.0003863,14]
[341375785,1730856643363,-500.0,0.0003863,14]
[341375786,1730856643374,-500.0,0.0003863,14]
[341375787,1730856643383,-151.0,0.0003863,14]
[341375788,1730856643393,-324.68908432,0.0003863,14]
[341375789,1730856643403,-500.0,0.0003863,14]
[341375790,1730856643412,-151.0,0.0003863,14]
[341375791,1730856643422,-500.0,0.0003863,14]
[341375793,1730856643431,-156.73025,0.0003863,14]
[341375795,1730856643441,-500.0,0.0003863,14]
[341375797,1730856643451,-500.0,0.0003863,14]
[341375799,1730856643461,-500.0,0.0003863,14]
[341375801,1730856643471,-500.0,0.0003863,14]
[341375803,1730856643481,-151.0,0.0003863,14]
[341375805,1730856643491,-151.0,0.0003863,14]
[341375807,1730856643501,-500.0,0.0003863,14]
[341375810,1730856643510,-500.0,0.0003863,14]
[341375812,1730856643520,-151.0,0.0003863,14]
[341375814,1730856643530,-156.692364,0.0003863,14]
[341375816,1730856643544,-151.0,0.0003863,14]
[341375818,1730856643554,-500.0,0.0003863,14]
[341375820,1730856643564,-500.0,0.0003863,14]
[341375822,1730856643575,-178.777265,0.0003863,14]
[341375824,1730856643584,-503.88016182,0.0003863,14]
[341375826,1730856643594,-397.73048169,0.0003863,14]
[341375828,1730856643603,-1388.64,0.0003863,14]
[341375830,1730856643613,-151.0,0.0003863,14]
[341375832,1730856643623,-500.0,0.0003863,14]
[341375834,1730856643632,-500.0,0.0003863,14]
[341375836,1730856643642,-500.0,0.0003863,14]
[341375838,1730856643652,-151.0,0.0003863,2]
[341375840,1730856643661,-761.12,0.0003863,14]
[341375842,1730856643670,-1173.77,0.0003863,14]
[341375844,1730856643680,-500.0,0.0003863,14]
[341375846,1730856643689,-151.0,0.0003863,14]
[341375848,1730856643699,-534.0922771,0.0003863,14]
[341375850,1730856643712,-2313.39,0.0003863,14]
[341375852,1730856643721,-500.0,0.0003863,14]
[341375854,1730856643731,-151.0,0.0003863,14]
[341375856,1730856643740,-500.0,0.0003863,14]
[341375858,1730856643752,-511.86101274,0.0003863,14]
[341375860,1730856643762,-500.0,0.0003863,14]
[341375862,1730856643771,-1321.53,0.0003863,14]
[341375864,1730856643780,-779.97,0.0003863,14]
[341375866,1730856643792,-500.0,0.0003863,14]
[341375868,1730856643803,-602.22,0.0003863,14]
[341375870,1730856643812,-500.0,0.0003863,14]
[341375871,1730856643822,-552.64,0.0003863,14]
[341375873,1730856643832,-151.0,0.0003863,14]
[341375875,1730856643842,-732.64,0.0003863,14]
[341375877,1730856643852,-6568.81,0.0003863,14]
[341375879,1730856643862,-1217.8,0.0003863,14]
[341375881,1730856643872,-500.0,0.0003863,14]
[341375884,1730856643882,-500.0,0.0003863,14]
[341375886,1730856643892,-2913.29,0.0003863,14]
[341375888,1730856643902,-500.0,0.0003863,14]
[341375890,1730856643911,-500.0,0.0003863,14]
[341375892,1730856643922,-500.0,0.0003863,14]
[341375894,1730856643931,-500.0,0.0003863,14]
[341375896,1730856643940,-3873.66,0.0003863,14]
[341375898,1730856643950,-500.0,0.0003863,14]
[341375900,1730856643960,-500.0,0.0003863,14]
[341375902,1730856643969,-500.0,0.0003863,14]
[341375904,1730856643979,-500.0,0.0003863,14]
[341375906,1730856643988,-500.0,0.0003863,14]
[341375908,1730856643999,-500.0,0.0003863,14]
[341375910,1730856644008,-151.0,0.0003863,14]
[341375912,1730856644018,-151.0,0.0003863,14]
[341375914,1730856644028,-500.0,0.0003863,14]
[341375916,1730856644042,-549.29,0.0003863,14]
[341375919,1730856644053,-500.0,0.0003863,14]
[341375921,1730856644063,-500.0,0.0003863,14]
[341375923,1730856644072,-500.0,0.0003863,14]
[341375925,1730856644082,-500.0,0.0003863,14]
[341375927,1730856644094,-500.0,0.0003863,14]
[341375929,1730856644103,-338.34365822,0.0003863,14]
[341375931,1730856644113,-500.0,0.0003863,14]
[341375933,1730856644122,-514.11427911,0.0003863,14]
[341375935,1730856644131,-151.0,0.0003863,14]
[341375937,1730856644141,-500.0,0.0003863,14]
[341375939,1730856644151,-151.0,0.0003863,14]
[341375941,1730856644161,-500.0,0.0003863,14]
[341375943,1730856644170,-500.0,0.0003863,14]
[341375945,1730856644179,-151.0,0.0003863,14]
[341375947,1730856644189,-8669.45,0.0003863,14]
[341375950,1730856644198,-1445.33,0.0003863,14]
[341375952,1730856644208,-2563.05,0.0003863,14]
[341375954,1730856644219,-500.0,0.0003863,2]
[341375956,1730856644229,-719.67,0.0003863,14]
[341375958,1730856644240,-579.84498825,0.0003863,14]
[341375960,1730856644250,-500.0,0.0003863,14]
[341375962,1730856644261,-500.0,0.0003863,14]
[341375964,1730856644272,-2804.27,0.0003863,14]
[341375966,1730856644285,-500.0,0.0003863,14]
[341375968,1730856644295,-500.0,0.0003863,14]
[341375970,1730856644304,-500.0,0.0003863,14]
[341375972,1730856644313,-500.0,0.0003863,14]
[341375974,1730856644322,-1393.6,0.0003863,14]
[341375976,1730856644331,-500.0,0.0003863,14]
[341375978,1730856644340,-500.0,0.0003863,14]
[341375980,1730856644349,-500.0,0.0003863,14]
[341375982,1730856644359,-605.62,0.0003863,14]
[341375984,1730856644368,-724.23,0.0003863,14]
[341375986,1730856644377,-500.0,0.0003863,14]
[341375988,1730856644388,-152.0,0.0003863,14]
[341375989,1730856644400,-500.0,0.00038673,5]
[341375990,1730856644409,-161.46427809,0.00038673,5]
[341375991,1730856644420,-501.83538923,0.00038673,5]
[341375992,1730856644430,-500.0,0.00038673,5]
[341375993,1730856644439,-500.0,0.00038673,5]
[341375994,1730856644450,-160.0,0.00038708,3]
[341375995,1730856644459,-240.17878616,0.00038708,5]
[341376000,1730856644541,-1000.0,0.000388,30]
[341376002,1730856644551,-1000.0,0.000388,60]
[341376004,1730856644561,-1000.0,0.000388,90]
[341376006,1730856644570,-614.0,0.000388,2]
[341376008,1730856644580,-151.0,0.000388,14]
[341376010,1730856644590,-151.0,0.000388,14]
[341376012,1730856644600,-3101.03857379,0.00038869,2]
[341376014,1730856644610,-214.69032341,0.00038904,14]
[341376016,1730856644619,-500.0,0.00038904,14]
[341376018,1730856644629,-151.0,0.00038904,14]
[341376020,1730856644639,-423.82818174,0.00038904,14]
[341376022,1730856644649,-500.0,0.00038904,14]
[341376024,1730856644658,-260.49711731,0.00038904,14]
[341376026,1730856644668,-500.0,0.00038904,14]
[341376029,1730856644679,-500.0,0.00038904,14]
[341376031,1730856644689,-500.0,0.00038904,14]
[341376033,1730856644699,-151.463428,0.00038904,14]
[341376035,1730856644712,-500.0,0.00038904,14]
[341376037,1730856644722,-500.0,0.00038904,14]
[341376039,1730856644732,-151.0,0.00038904,14]
[341376041,1730856644743,-151.0,0.00038904,14]
[341376043,1730856644755,-500.0,0.00038904,14]
[341376045,1730856644764,-500.0,0.00038904,120]
[341376047,1730856644774,-500.0,0.00038904,14]
[341376049,1730856644786,-500.0,0.00038904,14]
[341376051,1730856644796,-500.0,0.00038904,7]
[341376053,1730856644806,-500.0,0.00038904,14]
[341376055,1730856644817,-500.0,0.00038904,14]
[341376057,1730856644826,-500.0,0.00038904,14]
[341376059,1730856644836,-877.17,0.00038904,14]
[341376061,1730856644848,-410.8761541,0.00038904,14]
[341376063,1730856644857,-361.9991798,0.00038904,14]
[341376066,1730856644869,-500.0,0.00038904,14]
[341376068,1730856644880,-500.0,0.00038904,14]
[341376070,1730856644890,-500.0,0.00038904,14]
[341376072,1730856644900,-500.0,0.00038904,14]
[341376074,1730856644910,-500.0,0.00038904,14]
[341376076,1730856644920,-500.0,0.00038904,14]
[341376077,1730856644930,-500.0,0.00038904,14]
[341376078,1730856644940,-500.0,0.00038904,14]
[341376079,1730856644950,-151.0,0.00038904,14]
[341376080,1730856644960,-500.0,0.00038904,14]
[341376081,1730856644969,-500.0,0.00038904,14]
[341376082,1730856644979,-500.0,0.00038904,14]
[341376083,1730856644988,-500.0,0.00038904,14]
[341376084,1730856644998,-500.0,0.00038904,14]
[341376085,1730856645007,-500.0,0.00038904,14]
[341376086,1730856645017,-500.0,0.00038904,14]
[341376087,1730856645027,-151.0,0.00038904,14]
[341376088,1730856645041,-151.0,0.00038904,14]
[341376089,1730856645051,-500.0,0.00038904,14]
[341376090,1730856645061,-1388.64,0.00038904,14]
[341376091,1730856645071,-151.0,0.00038904,14]
[341376092,1730856645082,-151.0,0.00038904,14]
[341376093,1730856645092,-500.0,0.00038904,14]
[341376094,1730856645101,-500.0,0.00038904,14]
[341376095,1730856645111,-152.704264,0.00038904,2]
[341376096,1730856645120,-761.12,0.00038904,14]
[341376097,1730856645130,-1173.77,0.00038904,14]
[341376098,1730856645140,-500.0,0.00038904,14]
[341376099,1730856645150,-2313.39,0.00038904,14]
[341376100,1730856645160,-500.0,0.00038904,14]
[341376101,1730856645169,-402.41200574,0.00038904,14]
[341376102,1730856645179,-500.0,0.00038904,14]
[341376103,1730856645189,-1321.53,0.00038904,14]
[341376104,1730856645199,-779.97,0.00038904,14]
[341376105,1730856645208,-512.18699257,0.00038904,14]
[341376106,1730856645219,-602.22,0.00038904,14]
[341376107,1730856645228,-500.0,0.00038904,14]
[341376108,1730856645239,-552.64,0.00038904,14]
[341376109,1730856645249,-151.0,0.00038904,14]
[341376110,1730856645259,-732.64,0.00038904,14]
[341376111,1730856645269,-151.0,0.00038904,14]
[341376112,1730856645278,-6568.81,0.00038904,14]
[341376113,1730856645291,-1217.8,0.00038904,14]
[341376114,1730856645300,-500.0,0.00038904,14]
[341376115,1730856645311,-500.0,0.00038904,14]
[341376116,1730856645320,-2913.29,0.00038904,14]
[341376117,1730856645331,-500.0,0.00038904,14]
[341376118,1730856645342,-500.0,0.00038904,14]
[341376119,1730856645352,-500.0,0.00038904,14]
[341376120,1730856645362,-3873.66,0.00038904,14]
[341376121,1730856645372,-500.0,0.00038904,14]
[341376122,1730856645383,-500.0,0.00038904,14]
[341376123,1730856645393,-500.0,0.00038904,14]
[341376124,1730856645403,-500.0,0.00038904,14]
[341376125,1730856645414,-500.0,0.00038904,14]
[341376126,1730856645424,-151.0,0.00038904,14]
[341376127,1730856645433,-500.0,0.00038904,14]
[341376128,1730856645443,-549.29,0.00038904,14]
[341376129,1730856645453,-500.0,0.00038904,14]
[341376130,1730856645462,-500.0,0.00038904,14]
[341376131,1730856645472,-530.98239763,0.00038904,14]
[341376132,1730856645481,-500.0,0.00038904,14]
[341376133,1730856645491,-500.0,0.00038904,14]
[341376134,1730856645501,-510.97613645,0.00038904,14]
[341376135,1730856645511,-151.0,0.00038904,14]
[341376136,1730856645520,-500.0,0.00038904,14]
[341376137,1730856645530,-500.0,0.00038904,14]
[341376138,1730856645542,-8669.45,0.00038904,14]
[341376139,1730856645551,-1445.33,0.00038904,14]
[341376140,1730856645561,-2563.05,0.00038904,14]
[341376141,1730856645571,-500.0,0.00038904,2]
[341376142,1730856645581,-719.67,0.00038904,14]
[341376143,1730856645591,-500.0,0.00038904,14]
[341376144,1730856645601,-500.0,0.00038904,14]
[341376145,1730856645611,-2804.27,0.00038904,14]
[341376146,1730856645621,-500.0,0.00038904,14]
[341376147,1730856645631,-500.0,0.00038904,14]
[341376148,1730856645641,-500.0,0.00038904,14]
[341376149,1730856645650,-500.0,0.00038904,14]
[341376150,1730856645660,-1393.6,0.00038904,14]
[341376151,1730856645670,-500.0,0.00038904,14]
[341376152,1730856645680,-500.0,0.00038904,14]
[341376153,1730856645690,-500.0,0.00038904,14]
[341376154,1730856645701,-605.62,0.00038904,14]
[341376155,1730856645715,-724.23,0.00038904,14]
[341376156,1730856645726,-500.0,0.00038904,14]
[341376157,1730856645737,-509.570862,0.0003895,2]
[341376158,1730856645747,-500.0,0.00038973,5]
[341376159,1730856645758,-500.0,0.00038973,5]
[341376160,1730856645768,-500.0,0.00038973,5]
[341376161,1730856645779,-500.0,0.00038973,5]
[341376162,1730856645791,-500.0,0.00038973,5]
[341376163,1730856645801,-500.0,0.00038973,5]
[341376164,1730856645810,-150.01,0.00038999,2]
[341376165,1730856645819,-2508.71965834,0.00038999,2]
[341376166,1730856645829,-143388.3241825,0.00039,2]
[341376167,1730856645974,-1101.365,0.00037776,2]
[341376168,1730856645984,-500.0,0.0003863,14]
[341376169,1730856645994,-500.0,0.00038904,14]
[341376170,1730856646004,-26473.89111209,0.00039,2]
[341376232,1730856646590,-461.34111712,0.00038356,14]
[341376234,1730856646602,-80.35172286,0.00038356,14]
[341376236,1730856646612,-372.64827714,0.0003899,10]
[341376239,1730856646625,-693.38172286,0.0003899,10]
[341376241,1730856646635,-2851.18196319,0.00039,2]
[341376253,1730856646857,-918.64713147,0.00039,2]
[341376400,1730856662666,150.46530863,0.00024658,2]
[341376401,1730856694678,520.83333333,0.00023053,2]
[341376402,1730856740462,150.0,0.00028,2]
[341376403,1730856740929,150.0,0.0003,2]
[341376404,1730856743095,186.071,0.0003,2]
[341376405,1730856756874,520.83333333,0.00020816,2]
[341376406,1730856861484,175.171779,0.00013973,2]
[341376409,1730857248428,170.87,0.00020816,2]
[341376411,1730857368784,520.83333333,0.00020816,2]
[341376412,1730857371061,173.0578919,0.00013973,2]
[341376415,1730857409314,1425.0,0.00024,60]
[341376416,1730857545154,-192.5361,0.000252,2]
[341376417,1730857627115,-1182.31222616,0.000252,2]
[341376418,1730857629093,-1346.96619079,0.000252,2]
[341376419,1730857629117,-250.0,0.000284,120]
[341376420,1730857629138,-3329.75660703,0.00029,120]
[341376421,1730857629159,-300.0,0.00029996,2]
[341376422,1730857629268,-300.0,0.00029996,2]
[341376423,1730857629290,-151.0,0.0003,120]
[341376424,1730857629312,-154.34739132,0.0003,2]
[341376425,1730857629334,-151.0,0.0003,120]
[341376426,1730857629355,-300.0,0.0003,2]
[341376427,1730857629376,-420.159918,0.000301,2]
[341376428,1730857629397,-202.77469,0.000309,120]
[341376429,1730857629418,-291.548676,0.00030988,2]
[341376430,1730857629440,-188.720816,0.00031572,2]
[341376431,1730857629461,-291.548676,0.00031673,2]
[341376432,1730857629485,-270.3354125,0.00031963,2]
[341376433,1730857629514,-300.0,0.00032,120]
[341376434,1730857629538,-489.72663165,0.00032108,2]
[341376435,1730857629561,-420.0,0.00032329,2]
[341376436,1730857629582,-291.548676,0.00032358,2]
[341376437,1730857629604,-164.104,0.0003276,2]
[341376438,1730857629625,-187.889754,0.00032877,120]
[341376439,1730857629647,-468.5715193,0.00032895,2]
[341376440,1730857629667,-420.0,0.00032996,2]
[341376441,1730857629689,-165.0,0.00033,2]
[341376442,1730857629711,-208.90898993,0.000335,120]
[341376443,1730857629732,-37.41637581,0.000336,10]
[341376444,1730857637101,-233.0335199,0.00030772,2]
[341376445,1730857637125,-127.01362419,0.000336,10]
[341376446,1730857637150,-151.0,0.00034,120]
[341376447,1730857637173,-300.0,0.00034,120]
[341376448,1730857637196,-500.0,0.00034258,7]
[341376449,1730857637221,-500.0,0.00034258,7]
[341376450,1730857637242,-302.22411296,0.00034258,7]
[341376451,1730857637268,-500.0,0.00034258,2]
[341376452,1730857637290,-179.12092619,0.00034258,7]
[341376453,1730857637313,-287.60335326,0.00034258,7]
[341376454,1730857637335,-500.0,0.00034258,7]
[341376455,1730857637357,-204.19351603,0.00034258,7]
[341376456,1730857637379,-500.0,0.00034258,7]
[341376457,1730857637400,-500.0,0.00034258,7]
[341376458,1730857637422,-454.00489269,0.00034258,2]
[341376459,1730857646088,-68.63662533,0.00034258,2]
[341376460,1730857646109,-500.0,0.00034258,7]
[341376461,1730857646130,-500.0,0.00034258,7]
[341376462,1730857646154,-500.0,0.00034258,7]
[341376463,1730857646176,-500.0,0.00034258,7]
[341376464,1730857646198,-254.27394725,0.00034258,7]
[341376465,1730857650093,-166.0,0.00033,2]
[341376466,1730857650115,-252.08475975,0.00034258,7]
[341376467,1730857650138,-509.01955435,0.00034258,7]
[341376468,1730857650161,-85.95874096,0.00034258,7]
[341376469,1730857746102,-520.83333333,0.00024323,2]
[341376470,1730857794328,520.83333333,0.00023446,2]
[341376471,1730857796610,170.045,0.0003,2]
[341376526,1730857835032,350.77329,0.000309,120]
[341376588,1730857839120,-185.2721461,0.0003368,2]
[341376590,1730857839130,-838.2679202,0.00033846,2]
[341376592,1730857839139,-400.0,0.00034259,2]
[341376594,1730857839150,-5000.0,0.0003426,120]
[341376597,1730857839160,-500.0,0.0003426,7]
[341376599,1730857839172,-500.0,0.0003426,7]
[341376601,1730857839182,-500.0,0.0003426,7]
[341376603,1730857839192,-500.0,0.0003426,7]
[341376605,1730857839201,-238.14312617,0.0003426,7]
[341376607,1730857839212,-234.17628506,0.0003426,7]
[341376609,1730857839223,-8006.0,0.00034261,30]
[341376610,1730857839232,-333.9198208,0.000347,2]
[341376611,1730857839241,-5000.0,0.000348,60]
[341376612,1730857839250,-171.22569957,0.000348,40]
[341376613,1730857839260,-151.0,0.00035452,120]
[341376614,1730857839269,-164.097,0.0003552,2]
[341376615,1730857839279,-333.91982073,0.00035729,2]
[341376616,1730857839290,-300.0,0.00036,120]
[341376617,1730857839299,-333.91982073,0.00036757,2]
[341376618,1730857839309,-560.0,0.00036761,2]
[341376619,1730857839322,-333.91982073,0.00037786,2]
[341376620,1730857839332,-151.0,0.00038,120]
[341376621,1730857839342,-223.0,0.00038,120]
[341376622,1730857839354,-5000.0,0.00038,40]
[341376623,1730857839363,-300.0,0.00038,120]
[341376624,1730857839372,-334.8,0.00038346,3]
[341376625,1730857839382,-922.51,0.00038346,10]
[341376626,1730857839393,-2883.53975733,0.00038354,120]
[341376627,1730857839500,-1101.14,0.00038355,120]
[341376628,1730857839510,-195.63635029,0.00038355,15]
[341376629,1730857839520,-531.09787656,0.00038356,14]
[341376630,1730857839529,-500.0,0.00038356,14]
[341376631,1730857839538,-500.0,0.00038356,14]
[341376632,1730857839547,-500.0,0.00038356,7]
[341376633,1730857839556,-614.19162121,0.00038356,14]
[341376634,1730857839565,-500.0,0.00038356,14]
[341376635,1730857839574,-500.0,0.00038356,14]
[341376636,1730857839583,-500.0,0.00038356,14]
[341376637,1730857839592,-500.0,0.00038356,14]
[341376638,1730857839600,-500.0,0.00038356,14]
[341376639,1730857839610,-509.62270958,0.00038356,14]
[341376640,1730857839619,-505.68624897,0.00038356,14]
[341376641,1730857839629,-503.40331602,0.00038356,14]
[341376642,1730857839638,-162.95490252,0.00038356,14]
[341376643,1730857839651,-500.0,0.00038356,14]
[341376644,1730857839662,-646.90243698,0.00038356,14]
[341376645,1730857839671,-503.46960886,0.00038356,14]
[341376646,1730857839681,-500.0,0.00038356,14]
[341376647,1730857839690,-187.66589368,0.00038356,14]
[341376648,1730857839699,-530.19136132,0.00038356,14]
[341376649,1730857839710,-500.0,0.00038356,14]
[341376650,1730857839721,-428.63148759,0.00038356,14]
[341376651,1730857839731,-277.81456395,0.00038356,14]
[341376652,1730857839743,-222.18543605,0.00038356,14]
[341376653,1730857839754,-500.0,0.00038356,120]
[341376654,1730857839763,-841.4,0.00038356,14]
[341376655,1730857839773,-500.0,0.00038356,14]
[341376656,1730857839782,-500.0,0.00038356,14]
[341376657,1730857839791,-467.91630366,0.00038356,14]
[341376658,1730857839801,-500.0,0.00038356,14]
[341376659,1730857839810,-508.32775979,0.00038356,14]
[341376660,1730857839819,-502.56203358,0.00038356,14]
[341376661,1730857839828,-500.0,0.00038356,14]
[341376662,1730857839838,-500.0,0.00038356,14]
[341376663,1730857839847,-500.0,0.00038356,14]
[341376664,1730857839856,-271.00800254,0.00038356,120]
[341376665,1730857839865,-500.0,0.00038356,14]
[341376666,1730857839875,-533.24810309,0.00038356,14]
[341376667,1730857839884,-518.52186689,0.00038356,14]
[341376668,1730857839896,-420.14144799,0.00038356,14]
[341376669,1730857839906,-500.0,0.00038356,14]
[341376670,1730857839917,-502.52678229,0.00038356,14]
[341376671,1730857839927,-500.0,0.00038356,14]
[341376672,1730857839936,-509.18862426,0.00038356,14]
[341376673,1730857839945,-507.81127132,0.00038356,14]
[341376674,1730857839955,-501.99163891,0.00038356,14]
[341376675,1730857839964,-500.0,0.00038356,14]
[341376676,1730857839974,-500.0,0.00038356,14]
[341376677,1730857839983,-1272.92,0.00038356,14]
[341376678,1730857839993,-500.0,0.00038356,14]
[341376679,1730857840003,-510.19375155,0.00038356,14]
[341376680,1730857840012,-500.0,0.00038356,14]
[341376681,1730857840022,-500.0,0.00038356,14]
[341376682,1730857840032,-512.9295874,0.00038356,14]
[341376683,1730857840042,-500.0,0.00038356,14]
[341376684,1730857840052,-500.0,0.00038356,14]
[341376685,1730857840061,-512.5632631,0.00038356,14]
[341376686,1730857840071,-698.85,0.00038356,14]
[341376687,1730857840080,-507.26203973,0.00038356,14]
[341376688,1730857840090,-1077.31,0.00038356,14]
[341376689,1730857840099,-500.0,0.00038356,14]
[341376690,1730857840109,-2120.61,0.00038356,14]
[341376691,1730857840119,-512.70033038,0.00038356,14]
[341376692,1730857840128,-455.30853614,0.00038356,14]
[341376705,1730857840834,-44.69146386,0.00038356,14]
[341376707,1730857840844,-503.02978616,0.00038356,14]
[341376708,1730857840854,-500.0,0.00038356,14]
[341376709,1730857840863,-501.96645268,0.00038356,14]
[341376710,1730857840873,-503.93857416,0.00038356,14]